fUSD/lending_fUSD_20250221
["ID","MTS","AMOUNT","RATE_DAILY","PERIOD"]
[353964926,1740168645221,-500.0,0.00010958,2]
[353964927,1740168645231,-500.0,0.00010958,2]
[353964928,1740168645240,-500.0,0.00011041,2]
[353964929,1740168645250,-199.86032841,0.00011123,2]
[353964930,1740168645260,-500.0,0.00011123,2]
[353964931,1740168645271,-747.07,0.00011123,2]
[353964932,1740168645280,-500.0,0.00011123,2]
[353964933,1740168645290,-354.97324749,0.00011123,2]
[353964934,1740168645302,-145.02675251,0.00011123,2]
[353964935,1740168645311,-500.0,0.00011123,2]
[353964936,1740168645321,-628.96,0.00011123,2]
[353964937,1740168645330,-500.0,0.00011123,2]
[353964938,1740168645339,-634.97,0.00011123,2]
[353964939,1740168645349,-959.8,0.00011123,2]
[353964940,1740168645358,-500.0,0.00011123,2]
[353964941,1740168645368,-500.0,0.00011123,2]
[353964943,1740168645377,-500.0,0.00011123,2]
[353964945,1740168645386,-575.24,0.00011123,2]
[353964946,1740168645396,-624.33,0.00011123,2]
[353964947,1740168645406,-500.0,0.00011123,2]
[353964948,1740168645416,-581.26,0.00011123,2]
[353964950,1740168645426,-719.03,0.00011123,2]
[353964952,1740168645435,-500.0,0.00011123,2]
[353964953,1740168645444,-770.94,0.00011123,2]
[353964955,1740168645453,-417.93041578,0.00011123,2]
[353964957,1740168645466,-82.06958422,0.00011123,2]
[353964958,1740168645476,-500.0,0.00011123,2]
[353964959,1740168645486,-500.0,0.00011123,2]
[353964960,1740168645495,-559.54,0.00011123,2]
[353964961,1740168645506,-1277.87,0.00011123,2]
[353964962,1740168645515,-500.0,0.00011123,2]
[353964963,1740168645525,-500.0,0.00011123,2]
[353964964,1740168645535,-839.01,0.00011123,2]
[353964965,1740168645544,-684.65,0.00011123,2]
[353964966,1740168645553,-836.91,0.00011123,2]
[353964967,1740168645563,-500.0,0.00011123,2]
[353964969,1740168645573,-500.0,0.00011123,2]
[353964970,1740168645583,-500.0,0.00011123,2]
[353964971,1740168645593,-152.73685074,0.00011123,2]
[353964972,1740168645644,-347.26314926,0.00011123,2]
[353964973,1740168645653,-934.32,0.00011123,2]
[353964974,1740168645663,-500.0,0.00011123,2]
[353964975,1740168645673,-861.96,0.00011123,2]
[353964976,1740168645682,-151.20374127,0.00011123,2]
[353964977,1740168645694,-348.79625873,0.00011123,2]
[353964978,1740168645703,-500.0,0.00011123,2]
[353964979,1740168645714,-529.26,0.00011123,2]
[353964980,1740168645725,-180.02235638,0.00011123,2]
[353964981,1740168645734,-1328.04,0.00011123,2]
[353964982,1740168645743,-460.86635489,0.00011123,2]
[353964983,1740168645755,-296.33364511,0.00011123,2]
[353964984,1740168645765,-539.87,0.00011123,2]
[353964985,1740168645775,-500.0,0.00011123,2]
[353964986,1740168645784,-500.0,0.00011123,2]
[353964987,1740168645794,-890.84,0.00011123,2]
[353964988,1740168645803,-500.0,0.00011123,2]
[353964989,1740168645813,-500.0,0.00011123,2]
[353964990,1740168645822,-500.0,0.00011123,2]
[353964991,1740168645832,-517.79,0.00011123,2]
[353964992,1740168645841,-500.0,0.00011123,2]
[353964993,1740168645850,-500.0,0.00011123,2]
[353964994,1740168645860,-155.84982659,0.00011123,2]
[353964995,1740168645922,-344.15017341,0.00011123,2]
[353964996,1740168645932,-861.06,0.00011123,2]
[353964997,1740168645942,-500.0,0.00011123,2]
[353964998,1740168645951,-2310.16,0.00011123,2]
[353964999,1740168645960,-1599.34,0.00011123,2]
[353965001,1740168645970,-131.82528574,0.00011123,2]
[353965003,1740168645981,-368.17471426,0.00011123,2]
[353965005,1740168645990,-500.0,0.00011123,2]
[353965007,1740168645999,-501.11,0.00011123,2]
[353965009,1740168646009,-500.0,0.00011123,2]
[353965011,1740168646018,-698.32,0.00011123,2]
[353965013,1740168646026,-604.45,0.00011123,2]
[353965015,1740168646035,-111.77375359,0.00011123,2]
[353965031,1740168646410,-500.0,0.00010958,2]
[353965032,1740168646420,-500.0,0.00010958,2]
[353965033,1740168646430,-500.0,0.00010958,2]
[353965034,1740168646440,-500.0,0.00010958,2]
[353965035,1740168646450,-500.0,0.00010958,2]
[353965036,1740168646460,-313.0451606,0.00010958,2]
[353965037,1740168646473,-186.9548394,0.00010958,2]
[353965038,1740168646483,-500.0,0.00011041,2]
[353965039,1740168646492,-500.0,0.00011041,2]
[353965040,1740168646502,-299.5999212,0.00011041,2]
[353965041,1740168646513,-200.4000788,0.00011041,2]
[353965042,1740168646522,-500.0,0.00011041,2]
[353965043,1740168646531,-354.81283286,0.00011123,2]
[353965044,1740168646543,-33.41341355,0.00011123,2]
[353965045,1740168646553,-500.0,0.00011123,2]
[353965046,1740168646564,-500.0,0.00011123,2]
[353965047,1740168646575,-952.5,0.00011123,2]
[353965048,1740168646585,-500.0,0.00011123,2]
[353965049,1740168646596,-500.0,0.00011123,2]
[353965050,1740168646607,-43.06557142,0.00011123,2]
[353965051,1740168646620,-624.36442858,0.00011123,2]
[353965052,1740168646629,-478.97254786,0.00011123,2]
[353965053,1740168646639,-500.0,0.00011123,2]
[353965054,1740168646649,-500.0,0.00011123,2]
[353965055,1740168646659,-285.457431,0.00011123,2]
[353965056,1740168646668,-500.0,0.00011123,2]
[353965057,1740168646678,-533.34,0.00011123,2]
[353965058,1740168646688,-500.0,0.00011123,2]
[353965059,1740168646699,-500.0,0.00011123,2]
[353965060,1740168646708,-529.2,0.00011123,2]
[353965061,1740168646720,-952.79,0.00011123,2]
[353965062,1740168646729,-500.0,0.00011123,2]
[353965063,1740168646739,-500.0,0.00011123,2]
[353965064,1740168646749,-613.5,0.00011123,2]
[353965065,1740168646758,-500.0,0.00011123,2]
[353965066,1740168646768,-992.64,0.00011123,2]
[353965067,1740168646778,-500.0,0.00011123,2]
[353965068,1740168646787,-542.49555667,0.00011123,2]
[353965069,1740168646796,-500.0,0.00011123,2]
[353965070,1740168646806,-823.7,0.00011123,2]
[353965071,1740168646815,-500.0,0.00011123,2]
[353965072,1740168646824,-500.0,0.00011123,2]
[353965073,1740168646834,-500.0,0.00011123,2]
[353965074,1740168646843,-500.0,0.00011123,2]
[353965075,1740168646852,-500.0,0.00011123,2]
[353965076,1740168646863,-500.0,0.00011123,2]
[353965077,1740168646872,-574.6,0.00011123,2]
[353965078,1740168646881,-528.25,0.00011123,2]
[353965079,1740168646891,-167.539023,0.00011123,2]
[353965080,1740168646900,-598.35,0.00011123,2]
[353965081,1740168646910,-500.0,0.00011123,2]
[353965082,1740168646920,-555.05777195,0.00011123,2]
[353965083,1740168646929,-630.17,0.00011123,2]
[353965084,1740168646939,-500.0,0.00011123,2]
[353965085,1740168646948,-510.03,0.00011123,2]
[353965086,1740168646957,-500.0,0.00011123,2]
[353965087,1740168646966,-500.0,0.00011123,2]
[353965088,1740168646977,-500.0,0.00011123,2]
[353965089,1740168646987,-527.2,0.00011123,2]
[353965090,1740168646997,-831.81,0.00011123,2]
[353965091,1740168647007,-500.0,0.00011123,2]
[353965092,1740168647017,-500.0,0.00011123,2]
[353965093,1740168647027,-500.0,0.00011123,2]
[353965094,1740168647037,-655.58,0.00011123,2]
[353965095,1740168647047,-500.0,0.00011123,2]
[353965096,1740168647058,-500.0,0.00011123,2]
[353965097,1740168647068,-500.0,0.00011123,2]
[353965098,1740168647078,-500.0,0.00011123,2]
[353965099,1740168647088,-938.81,0.00011123,2]
[353965100,1740168647099,-500.0,0.00011123,2]
[353965101,1740168647114,-1163.98,0.00011123,2]
[353965102,1740168647128,-766.14,0.00011123,2]
[353965103,1740168647137,-500.0,0.00011123,2]
[353965104,1740168647147,-500.0,0.00011123,2]
[353965105,1740168647158,-668.09,0.00011123,2]
[353965106,1740168647167,-500.0,0.00011123,2]
[353965107,1740168647177,-500.0,0.00011123,2]
[353965108,1740168647187,-500.0,0.00011123,2]
[353965109,1740168647199,-500.0,0.00011123,2]
[353965110,1740168647208,-500.0,0.00011123,2]
[353965111,1740168647220,-916.99,0.00011123,2]
[353965112,1740168647230,-500.0,0.00011123,2]
[353965113,1740168647240,-840.06,0.00011123,2]
[353965114,1740168647250,-688.27,0.00011123,2]
[353965115,1740168647259,-500.0,0.00011123,2]
[353965116,1740168647269,-500.0,0.00011123,2]
[353965117,1740168647279,-500.0,0.00011123,2]
[353965118,1740168647288,-500.0,0.00011123,2]
[353965119,1740168647299,-825.36,0.00011123,2]
[353965120,1740168647308,-744.23,0.00011123,2]
[353965121,1740168647318,-561.27,0.00011123,2]
[353965122,1740168647327,-538.01,0.00011123,2]
[353965123,1740168647337,-500.0,0.00011123,2]
[353965124,1740168647347,-500.0,0.00011123,2]
[353965125,1740168647357,-500.0,0.00011123,2]
[353965126,1740168647366,-886.94,0.00011123,2]
[353965127,1740168647376,-886.72,0.00011123,2]
[353965128,1740168647386,-137.47090728,0.00011123,2]
[353965129,1740168647724,-489.84909272,0.00011123,2]
[353965130,1740168647734,-500.0,0.00011123,2]
[353965131,1740168647744,-500.0,0.00011123,2]
[353965132,1740168647754,-808.91,0.00011123,2]
[353965133,1740168647764,-634.55,0.00011123,2]
[353965134,1740168647774,-500.0,0.00011123,2]
[353965135,1740168647784,-500.0,0.00011123,2]
[353965136,1740168647793,-831.14,0.00011123,2]
[353965137,1740168647804,-500.0,0.00011123,2]
[353965138,1740168647813,-152.00544696,0.00011123,2]
[353965141,1740169239695,297.95,8.767e-05,2]
[353965142,1740169536266,202.05,8.219e-05,2]
[353965143,1740169536290,309.73,8.219e-05,2]
[353965166,1740169831762,-489.17253924,9.879e-05,2]
[353965167,1740169831773,-19.21746076,9.879e-05,2]
[353965168,1740169831782,-162.65,9.982e-05,2]
[353965169,1740169832033,-300.0,9.999e-05,2]
[353965170,1740169832043,-150.0,9.999e-05,2]
[353965171,1740169832052,-550.0,0.0001,2]
[353965172,1740169832061,-862.84606164,0.0001,2]
[353965173,1740169832072,-4137.13729955,0.0001,2]
[353965174,1740169832082,-19907.1218335,0.0001,2]
[353965175,1740169832093,-1058.33872883,0.0001,2]
[353965176,1740169832104,-37023.13483457,0.0001,2]
[353965177,1740169832115,-9275.78976325,0.0001,2]
[353965179,1740169832126,-15271.36582743,0.0001,2]
[353965181,1740169832135,-26384.87415846,0.0001,2]
[353965183,1740169832144,-2146.69078811,0.0001,2]
[353965185,1740169832153,-186.84,0.00010022,2]
[353965186,1740169832162,-162.65,0.00010031,2]
[353965188,1740169832171,-162.65,0.00010081,2]
[353965190,1740169832180,-162.65,0.00010131,2]
[353965192,1740169832190,-460.20870484,0.00010136,2]
[353965194,1740169832199,-1000.0,0.00010167,2]
[353965196,1740169832209,-162.65,0.00010181,2]
[353965198,1740169832218,-162.65,0.00010231,2]
[353965200,1740169832227,-162.65,0.00010281,2]
[353965202,1740169832236,-150.0,0.00010307,2]
[353965204,1740169832246,-150.0,0.00010307,2]
[353965206,1740169832255,-150.0,0.00010307,2]
[353965208,1740169832264,-150.0,0.00010307,2]
[353965210,1740169832274,-162.65,0.00010331,2]
[353965212,1740169832283,-162.65,0.00010381,2]
[353965214,1740169832292,-303.82052115,0.00010463,2]
[353965216,1740169832303,-207.95947885,0.00010463,2]
[353965218,1740169832312,-150.0,0.00010484,2]
[353965220,1740169832322,-150.0,0.00010689,2]
[353965223,1740169832332,-300.0,0.000107,3]
[353965224,1740169832342,-5371.25864104,0.00010758,2]
[353965228,1740169832367,-7434.628,0.00010758,2]
[353965230,1740169832378,-10288.67781518,0.00010758,2]
[353965233,1740169832389,-2356.50920683,0.00010758,2]
[353965235,1740169832400,-4548.92633695,0.00010758,2]
[353965237,1740169832409,-291.57366305,0.000108,3]
[353965241,1740169832441,-308.42633695,0.000108,3]
[353965243,1740169832450,-548.12171754,0.00010858,2]
[353965245,1740169832462,-9587.5,0.00010858,2]
[353965248,1740169832473,-4567.5776061,0.00010858,2]
[353965250,1740169832484,-802.31557787,0.00010858,2]
[353965252,1740169832496,-1416.687443,0.00010858,2]
[353965255,1740169832510,-797.7907638,0.00010858,2]
[353965257,1740169832521,-456.7858882,0.00010858,2]
[353965259,1740169832532,-2602.06320349,0.00010858,2]
[353965261,1740169832541,-4179.6641,0.00010858,2]
[353965263,1740169832550,-484.1275,0.00010858,2]
[353965265,1740169832560,-4290.16537272,0.00010858,2]
[353965728,1740169837721,-41533.64632728,0.00010858,2]
[353965730,1740169837730,-150.0,0.00010879,2]
[353965732,1740169837739,-150.0,0.00010879,2]
[353965734,1740169837747,-1000.0,0.000109,3]
[353965736,1740169837756,-162.98519443,0.000109,2]
[353965738,1740169837765,-168.5,0.00010928,2]
[353965740,1740169837774,-506.93,0.0001093,2]
[353965742,1740169837783,-503.12,0.0001093,2]
[353965743,1740169837792,-491.96,0.00010931,2]
[353965745,1740169837800,-496.11,0.00010932,2]
[353965747,1740169837809,-507.79,0.00010933,2]
[353965749,1740169837818,-495.87,0.00010935,2]
[353965751,1740169837827,-492.33,0.00010938,2]
[353965753,1740169837836,-490.7,0.00010941,2]
[353965755,1740169837845,-13918.6808,0.00010941,2]
[353965757,1740169837854,-805.6383,0.00010941,2]
[353965759,1740169837863,-509.85,0.00010945,2]
[353965761,1740169837872,-494.24,0.00010951,2]
[353965763,1740169837881,-6472.15237562,0.00010957,2]
[353965765,1740169837890,-255.77202096,0.00010958,2]
[353965767,1740169837898,-500.0,0.00010958,2]
[353965769,1740169837907,-500.0,0.00010958,2]
[353965772,1740169837916,-335.2418606,0.00010958,2]
[353965773,1740169837925,-500.0,0.00010958,2]
[353965775,1740169837935,-500.0,0.00010958,2]
[353965778,1740169837944,-500.0,0.00010958,2]
[353965780,1740169837953,-500.0,0.00010958,2]
[353965781,1740169837962,-500.0,0.00010958,2]
[353965783,1740169837971,-254.24193052,0.00010958,2]
[353965786,1740169837982,-245.75806948,0.00010958,2]
[353965788,1740169837991,-1399.42,0.00010958,2]
[353965790,1740169838001,-500.0,0.00010958,2]
[353965792,1740169838011,-500.0,0.00010958,2]
[353965794,1740169838020,-500.0,0.00010958,2]
[353965795,1740169838029,-500.0,0.00010958,2]
[353965797,1740169838038,-500.0,0.00010958,2]
[353965799,1740169838047,-500.0,0.00010958,2]
[353965801,1740169838057,-128.37193052,0.00010958,2]
[353965804,1740169838068,-371.62806948,0.00010958,2]
[353965806,1740169838077,-21.91333622,0.00010958,2]
[353965808,1740169838087,-478.08666378,0.00010958,2]
[353965810,1740169838097,-367.00166747,0.00010958,2]
[353965812,1740169838107,-500.0,0.00010958,2]
[353965814,1740169838116,-500.0,0.00010958,2]
[353965816,1740169838124,-375.94133126,0.00010958,2]
[353965834,1740169838222,-124.05866874,0.00010958,2]
[353965837,1740169838231,-500.0,0.00010958,2]
[353965840,1740169838240,-500.0,0.00010958,2]
[353965842,1740169838250,-500.0,0.00010958,2]
[353965845,1740169838258,-500.0,0.00010958,2]
[353965847,1740169838267,-519.78914113,0.00010958,2]
[353965850,1740169838276,-500.0,0.00010958,2]
[353965853,1740169838285,-500.0,0.00010958,2]
[353965855,1740169838294,-500.0,0.00010958,2]
[353965857,1740169838304,-500.0,0.00010958,2]
[353965859,1740169838313,-202.47940812,0.00010958,2]
[353965861,1740169838322,-500.0,0.00010958,2]
[353965863,1740169838331,-500.0,0.00010958,2]
[353965866,1740169838341,-500.0,0.00010958,2]
[353965869,1740169838350,-500.0,0.00010958,2]
[353965872,1740169838359,-505.9363508,0.00010958,2]
[353965875,1740169838367,-607.20885459,0.00010958,2]
[353965877,1740169838376,-605.41,0.00010958,2]
[353965879,1740169838385,-512.48115227,0.00010958,2]
[353965881,1740169838394,-500.0,0.00010958,2]
[353965883,1740169838403,-500.0,0.00010958,2]
[353965885,1740169838412,-500.0,0.00010958,2]
[353965887,1740169838421,-500.0,0.00010958,2]
[353965889,1740169838429,-500.0,0.00010958,2]
[353965891,1740169838438,-500.0,0.00010958,2]
[353965893,1740169838447,-569.74,0.00010958,2]
[353965895,1740169838456,-500.0,0.00010958,2]
[353965897,1740169838466,-500.0,0.00010958,2]
[353965899,1740169838474,-500.0,0.00010958,2]
[353965901,1740169838483,-500.0,0.00010958,2]
[353965903,1740169838492,-500.0,0.00010958,2]
[353965905,1740169838502,-614.61,0.00010958,2]
[353965907,1740169838511,-500.0,0.00010958,2]
[353965909,1740169838519,-500.0,0.00010958,2]
[353965911,1740169838528,-500.0,0.00010958,2]
[353965913,1740169838537,-500.0,0.00010958,2]
[353965915,1740169838546,-500.0,0.00010958,2]
[353965917,1740169838555,-500.0,0.00010958,2]
[353965919,1740169838564,-500.0,0.00010958,2]
[353965921,1740169838573,-670.15,0.00010958,2]
[353965923,1740169838584,-500.0,0.00010958,2]
[353965925,1740169838594,-500.0,0.00010958,2]
[353965927,1740169838603,-500.0,0.00010958,2]
[353965929,1740169838611,-534.13,0.00010958,2]
[353965931,1740169838623,-500.0,0.00010958,2]
[353965933,1740169838631,-605.6,0.00010958,2]
[353965935,1740169838640,-500.0,0.00010958,2]
[353965937,1740169838650,-500.0,0.00010958,2]
[353965939,1740169838659,-500.0,0.00010958,2]
[353965941,1740169838668,-501.59,0.00010958,2]
[353965943,1740169838677,-632.25,0.00010958,2]
[353965945,1740169838685,-500.0,0.00010958,2]
[353965946,1740169838694,-500.0,0.00010958,2]
[353965948,1740169838703,-500.0,0.00010958,2]
[353965950,1740169838712,-1114.7,0.00010958,2]
[353965952,1740169838723,-674.52,0.00010958,2]
[353965955,1740169838732,-881.49,0.00010958,2]
[353965956,1740169838741,-820.68,0.00010958,2]
[353965958,1740169838751,-524.17,0.00010958,2]
[353965960,1740169838760,-550.34,0.00010958,2]
[353965962,1740169838770,-1165.1,0.00010958,2]
[353965964,1740169838779,-500.0,0.00010958,2]
[353965966,1740169838789,-295.19416461,0.00010958,2]
[353965968,1740169838798,-653.83,0.00010958,2]
[353965970,1740169838807,-709.13,0.00010958,2]
[353965972,1740169838816,-670.82,0.00010958,2]
[353965974,1740169838825,-500.0,0.00010958,2]
[353965977,1740169838837,-643.9,0.00010958,2]
[353965979,1740169838846,-807.94,0.00010958,2]
[353965980,1740169838855,-500.0,0.00010958,2]
[353965982,1740169838864,-514.05,0.00010958,2]
[353965984,1740169838874,-500.0,0.00010958,2]
[353965986,1740169838883,-500.0,0.00010958,2]
[353965987,1740169838892,-523.23,0.00010958,2]
[353965988,1740169838901,-704.22,0.00010958,2]
[353965989,1740169838912,-500.0,0.00010958,2]
[353965990,1740169838921,-500.0,0.00010958,2]
[353966003,1740169838931,-951.59,0.00010958,2]
[353966005,1740169839178,-1138.97,0.00010958,2]
[353966007,1740169839187,-500.0,0.00010958,2]
[353966009,1740169839196,-775.05,0.00010958,2]
[353966011,1740169839205,-815.93,0.00010958,2]
[353966013,1740169839216,-1182.87,0.00010958,2]
[353966015,1740169839225,-529.36,0.00010958,2]
[353966017,1740169839235,-500.0,0.00010958,2]
[353966019,1740169839244,-500.0,0.00010958,2]
[353966021,1740169839253,-500.0,0.00010958,2]
[353966023,1740169839263,-947.3,0.00010958,2]
[353966025,1740169839272,-529.17,0.00010958,2]
[353966027,1740169839281,-549.72,0.00010958,2]
[353966029,1740169839290,-829.08,0.00010958,2]
[353966031,1740169839300,-609.13,0.00010958,2]
[353966033,1740169839308,-500.0,0.00010958,2]
[353966035,1740169839317,-500.0,0.00010958,2]
[353966037,1740169839326,-544.45,0.00010958,2]
[353966039,1740169839336,-720.74,0.00010958,2]
[353966041,1740169839345,-503.88,0.00010958,2]
[353966043,1740169839353,-790.95,0.00010958,2]
[353966045,1740169839362,-500.0,0.00010958,2]
[353966046,1740169839372,-794.91,0.00010958,2]
[353966048,1740169839382,-573.64,0.00010958,2]
[353966050,1740169839390,-1150.44,0.00010958,2]
[353966052,1740169839399,-500.0,0.00010958,2]
[353966054,1740169839408,-500.0,0.00010958,2]
[353966056,1740169839417,-500.0,0.00010958,2]
[353966058,1740169839426,-500.0,0.00010958,2]
[353966060,1740169839435,-664.74,0.00010958,2]
[353966062,1740169839444,-679.55,0.00010958,2]
[353966064,1740169839453,-500.0,0.00010958,2]
[353966066,1740169839463,-838.58,0.00010958,2]
[353966068,1740169839472,-500.0,0.00010958,2]
[353966070,1740169839482,-904.63,0.00010958,2]
[353966072,1740169839491,-635.22,0.00010958,2]
[353966074,1740169839501,-500.0,0.00010958,2]
[353966076,1740169839510,-795.36,0.00010958,2]
[353966078,1740169839519,-1056.28,0.00010958,2]
[353966080,1740169839529,-500.0,0.00010958,2]
[353966082,1740169839539,-512.15,0.00010958,2]
[353966084,1740169839548,-500.0,0.00010958,2]
[353966086,1740169839558,-500.0,0.00010958,2]
[353966088,1740169839571,-754.05,0.00010958,2]
[353966090,1740169839580,-607.35,0.00010958,2]
[353966092,1740169839589,-1053.24,0.00010958,2]
[353966094,1740169839598,-500.0,0.00010958,2]
[353966096,1740169839607,-619.74916049,0.00010958,2]
[353966098,1740169839618,-884.48,0.00010958,2]
[353966100,1740169839627,-500.0,0.00010958,2]
[353966102,1740169839636,-734.33,0.00010958,2]
[353966105,1740169839645,-552.54,0.00010958,2]
[353966108,1740169839655,-500.0,0.00010958,2]
[353966111,1740169839664,-539.64,0.00010958,2]
[353966114,1740169839673,-500.0,0.00010958,2]
[353966116,1740169839682,-760.38,0.00010958,2]
[353966118,1740169839691,-1272.99,0.00010958,2]
[353966120,1740169839700,-500.0,0.00010958,2]
[353966123,1740169839709,-790.63,0.00010958,2]
[353966126,1740169839719,-500.0,0.00010958,2]
[353966129,1740169839728,-500.0,0.00010958,2]
[353966132,1740169839737,-608.41,0.00010958,2]
[353966135,1740169839746,-787.42,0.00010958,2]
[353966138,1740169839755,-500.0,0.00010958,2]
[353966141,1740169839764,-718.23,0.00010958,2]
[353966144,1740169839773,-720.63,0.00010958,2]
[353966147,1740169839782,-679.3,0.00010958,2]
[353966150,1740169839791,-500.0,0.00010958,2]
[353966153,1740169839800,-584.17,0.00010958,2]
[353966156,1740169839810,-500.0,0.00010958,2]
[353966158,1740169839820,-911.34,0.00010958,2]
[353966159,1740169839829,-1266.62,0.00010958,2]
[353966160,1740169839838,-1324.24,0.00010958,2]
[353966162,1740169839847,-500.0,0.00010958,2]
[353966164,1740169839856,-656.96,0.00010958,2]
[353966166,1740169839866,-500.0,0.00010958,2]
[353966168,1740169839875,-500.0,0.00010958,2]
[353966170,1740169839884,-421.78,0.00010958,2]
[353966172,1740169839893,-1131.65943745,0.00010958,2]
[353966173,1740169839908,-20.75056255,0.00010958,2]
[353966175,1740169839922,-508.72750784,0.00010958,2]
[353966177,1740169839937,-544.55249216,0.00010958,2]
[353966179,1740169839947,-500.0,0.00010958,2]
[353966181,1740169839958,-4.82504451,0.00010958,2]
[353966185,1740169839990,-495.17495549,0.00010958,2]
[353966187,1740169840001,-953.95,0.00010958,2]
[353966189,1740169840011,-500.0,0.00010958,2]
[353966191,1740169840023,-500.0,0.00010958,2]
[353966193,1740169840032,-626.53,0.00010958,2]
[353966195,1740169840042,-679.65,0.00010958,2]
[353966197,1740169840051,-500.0,0.00010958,2]
[353966199,1740169840062,-837.63,0.00010958,2]
[353966201,1740169840071,-1382.11,0.00010958,2]
[353966203,1740169840081,-500.0,0.00010958,2]
[353966204,1740169840090,-500.0,0.00010958,2]
[353966206,1740169840100,-500.0,0.00010958,2]
[353966208,1740169840109,-500.0,0.00010958,2]
[353966210,1740169840118,-926.8,0.00010958,2]
[353966212,1740169840127,-500.0,0.00010958,2]
[353966214,1740169840136,-603.52,0.00010958,2]
[353966216,1740169840146,-500.0,0.00010958,2]
[353966218,1740169840155,-155.927599,0.00010958,2]
[353966220,1740169840165,-500.0,0.00010958,2]
[353966223,1740169840174,-500.0,0.00010958,2]
[353966224,1740169840183,-500.0,0.00010958,2]
[353966226,1740169840193,-500.0,0.00010958,2]
[353966228,1740169840202,-500.0,0.00010958,2]
[353966230,1740169840211,-500.0,0.00010958,2]
[353966232,1740169840224,-500.0,0.00010958,2]
[353966234,1740169840233,-497.96,0.00010958,2]
[353966236,1740169840243,-502.19,0.00010958,2]
[353966238,1740169840252,-498.41,0.00010958,2]
[353966240,1740169840261,-500.31,0.00010958,2]
[353966242,1740169840270,-502.56,0.00010958,2]
[353966244,1740169840279,-200.0,0.00010959,2]
[353966246,1740169840289,-255.0,0.00010999,2]
[353966248,1740169840299,-799.16,0.00011019,2]
[353966251,1740169840309,-1781.2,0.00011019,2]
[353966253,1740169840318,-251.862616,0.00011019,2]
[353966255,1740169840328,-1550.07,0.00011019,2]
[353966257,1740169840339,-316.422546,0.00011019,2]
[353966259,1740169840349,-500.0,0.00011019,2]
[353966261,1740169840358,-1412.73,0.00011019,2]
[353966263,1740169840367,-157.109846,0.00011019,2]
[353966265,1740169840376,-500.0,0.00011019,2]
[353966267,1740169840385,-1104.82,0.00011019,2]
[353966269,1740169840394,-7042.19,0.00011019,2]
[353966271,1740169840403,-1046.04,0.00011019,2]
[353966273,1740169840414,-1400.31,0.00011019,2]
[353966275,1740169840423,-1462.39,0.00011019,2]
[353966277,1740169840432,-895.64,0.00011019,2]
[353966279,1740169840441,-655.64,0.00011019,2]
[353966281,1740169840450,-1400.9,0.00011019,2]
[353966283,1740169840459,-1386.49,0.00011019,2]
[353966285,1740169840470,-1243.46,0.00011019,2]
[353966287,1740169840479,-1711.53,0.00011019,2]
[353966289,1740169840488,-2809.08,0.00011019,2]
[353966291,1740169840497,-951.19,0.00011019,2]
[353966293,1740169840507,-1340.02,0.00011019,2]